lending/lending_fUSD_20250501
["ID","MTS","AMOUNT","RATE_DAILY","PERIOD"]
[359554242,1746117040329,-42599.86997253,0.000199,2]
[359554243,1746117040338,-308.48886654,0.000199,2]
[359554244,1746117040351,-398.2184812,0.000199,2]
[359554245,1746117040360,-584.44669292,0.000199,2]
[359554246,1746117040369,-200.0,0.00019924,2]
[359554247,1746117040379,-250.0,0.00019924,2]
[359554248,1746117040388,-207.4,0.00019953,2]
[359554249,1746117040398,-141.07183088,0.00019954,2]
[359554250,1746117040410,-9.92816912,0.00019954,2]
[359554251,1746117040420,-500.0,0.00019973,2]
[359554252,1746117040430,-199.23613994,0.00019999,2]
[359554253,1746117040441,-181.57133974,0.00019999,2]
[359554254,1746117040451,-180.81147506,0.00019999,2]
[359554255,1746117040460,-292.14122543,0.00019999,2]
[359554256,1746117040472,-207.85877457,0.00019999,2]
[359554257,1746117040481,-500.0,0.00019999,2]
[359554258,1746117040491,-561.95870773,0.00019999,2]
[359554259,1746117040499,-500.0,0.00019999,2]
[359554260,1746117040508,-500.0,0.00019999,2]
[359554261,1746117040518,-500.0,0.00019999,2]
[359554262,1746117040527,-1822.46066961,0.0002,2]
[359554263,1746117040538,-1814.74099537,0.0002,2]
[359554264,1746117040551,-8456.29292692,0.0002,2]
[359554266,1746117040606,-89942.02989887,0.0002,2]
[359554273,1746117043040,-800.82437286,0.0002,2]
[359554275,1746117043098,-402742.85912987,0.0002,2]
[359554276,1746117043206,-110918.98806173,0.0002,2]
[359554280,1746117045788,-1862.08617678,0.00019651,2]
[359554281,1746117045843,-1806.43915722,0.00019651,2]
[359554282,1746117045854,-6375.6469294,0.0002,2]
[359554283,1746117046109,-15130.10215781,0.0002,2]
[359554284,1746117046318,-889.58561993,0.0002,2]
[359554288,1746117151111,-500.0,0.000199,2]
[359554289,1746117151133,-245.93316877,0.000199,2]
[359554290,1746117151154,-207.4,0.00019953,2]
[359554291,1746117151174,-151.0,0.00019954,2]
[359554292,1746117151194,-500.0,0.00019973,2]
[359554293,1746117151215,-300.0,0.00019999,2]
[359554294,1746117151236,-95.66683123,0.00019999,2]
[359554295,1746117185133,-300.0,0.00019999,2]
[359554296,1746117185156,-200.0,0.0002,2]
[359554297,1746117185179,-476500.0,0.0002,2]
[359554298,1746117237007,-2000.0,0.000199,2]
[359554299,1746117237039,-500.0,0.000199,2]
[359554300,1746117237064,-330.3937,0.000199,2]
[359554301,1746117237084,-500.0,0.00019973,2]
[359554302,1746117237108,-257.0,0.00019999,2]
[359554303,1746117237138,-412.6063,0.00019999,2]
[359554304,1746117237183,-87.3937,0.00019999,2]
[359554305,1746117237208,-339.04260199,0.00019999,2]
[359554306,1746117237233,-1573.56369801,0.0002,2]
[359554307,1746117237300,-2000.0,0.0002,2]
[359554308,1746117245544,-2000.0,0.0002,2]
[359554309,1746117247978,-171000.0,0.0002,2]
[359554310,1746117255038,-2000.0,0.000199,2]
[359554311,1746117260853,153.30714676,0.00019801,20]
[359554312,1746117275582,-1025.27397321,0.000199,2]
[359554313,1746117275605,-220.28433428,0.000199,2]
[359554314,1746117275627,-754.44169251,0.0002,2]
[359554315,1746117284767,-2000.0,0.0002,2]
[359554316,1746117292161,-2000.0,0.0002,2]
[359554317,1746117299780,-2000.0,0.0002,2]
[359554318,1746117307489,-1200.0,0.00019999,2]
[359554319,1746117307512,-800.0,0.0002,2]
[359554320,1746117319275,-400.96451374,0.00019973,2]
[359554321,1746117319297,-300.0,0.00019999,2]
[359554322,1746117319319,-1299.03548626,0.0002,2]
[359554323,1746117328108,-271.03146825,0.000199,3]
[359554324,1746117328133,-1728.96853175,0.0002,2]
[359554325,1746117339783,168.304267,0.00032585,60]
[359554326,1746117340390,-2000.0,0.0002,2]
[359554327,1746117355884,-582.09882234,0.000199,2]
[359554328,1746117355908,-1417.90117766,0.0002,2]
[359554329,1746117365570,-2000.0,0.0002,2]
[359554330,1746117369839,500.0,0.00032585,60]
[359554331,1746117374468,-2000.0,0.0002,2]
[359554332,1746117382397,-2000.0,0.0002,2]
[359554333,1746117386265,648.0799787,0.00032585,60]
[359554334,1746117389792,-500.0,0.00019999,2]
[359554335,1746117389818,-500.0,0.00019999,2]
[359554336,1746117389840,-1000.0,0.0002,2]
[359554337,1746117399754,-2000.0,0.000199,2]
[359554338,1746117543472,184.74,0.00027425,30]
[359554339,1746117578841,358.173967,0.0003287,60]
[359554340,1746117607002,500.0,0.0003287,60]
[359554341,1746117626136,150.0,0.00032867,60]
[359554342,1746117777323,429.0,0.00032876,60]
[359554343,1746117787657,164.22614,0.0002,23]
[359554344,1746117917508,250.0,0.00017,2]
[359554345,1746117918430,300.0,0.00019,2]
[359554350,1746118232007,-220.28433428,0.00019799,2]
[359554351,1746118232029,-1248.03,0.00019831,2]
[359554352,1746118232038,-1458.88173896,0.0001988,2]
[359554353,1746118232047,-1200.0,0.00019899,2]
[359554354,1746118232057,-300.0,0.00019899,2]
[359554355,1746118232066,-500.0,0.000199,2]
[359554356,1746118232075,-473.6668589,0.000199,2]
[359554357,1746118232084,-500.0,0.000199,2]
[359554358,1746118232094,-196.28905119,0.000199,2]
[359554359,1746118232114,-556.53260896,0.000199,2]
[359554360,1746118232129,-350.0,0.000199,2]
[359554361,1746118232142,-515.29159467,0.000199,2]
[359554362,1746118232210,-3401.28745045,0.000199,2]
[359554363,1746118232220,-2825.27397321,0.00019918,2]
[359554365,1746118232230,-207.4,0.00019953,2]
[359554367,1746118232239,-151.0,0.00019954,2]
[359554369,1746118232248,-500.0,0.00019973,2]
[359554371,1746118232258,-500.0,0.00019973,2]
[359554372,1746118232267,-400.96451374,0.00019973,2]
[359554374,1746118232276,-500.0,0.00019973,2]
[359554376,1746118232286,-504.17052908,0.00019973,2]
[359554378,1746118232295,-500.0,0.00019973,2]
[359554380,1746118232304,-1046.61376171,0.0001999,2]
[359554382,1746118232313,-500.0,0.00019999,2]
[359554384,1746118232323,-500.0,0.00019999,2]
[359554386,1746118232335,-12277.26010312,0.0002,2]
[359554436,1746118238362,-1711.199059,0.0002,2]
[359554437,1746118238386,-481.45192086,0.0002,2]
[359554440,1746118238411,-536.7293625,0.0002,2]
[359554516,1746118240114,-256867.73688886,0.0002,2]
[359554517,1746118240124,-45430.45253949,0.0002,2]
[359554518,1746118240272,-30960.55143175,0.0002,2]
[359554519,1746118240284,-2305.8902055,0.0002,2]
[359554520,1746118240296,-315.67504968,0.0002,2]
[359554521,1746118240380,-580.03548024,0.0002,2]
[359554522,1746118240393,-4032.71134052,0.0002,2]
[359554523,1746118240406,-5988.17281771,0.0002,2]
[359554524,1746118240596,-755.24747562,0.0002,2]
[359554525,1746118240647,-6167.3096582,0.0002,2]
[359554526,1746118240660,-6061.59731699,0.0002,2]
[359554527,1746118240674,-10083.92777197,0.0002,2]
[359554528,1746118240705,-1000.0,0.0002,2]
[359554556,1746118243375,-326.48097885,0.0002,2]
[359554561,1746118354942,208.3474961,0.000328,60]
[359554564,1746118664626,500.0,0.00032877,60]
[359554565,1746118679091,500.0,0.00032877,60]
[359554566,1746118689902,500.0,0.00032877,60]
[359554567,1746118857437,750.0,0.00032877,60]
[359554568,1746118970396,248.43036864,0.000328,60]
[359554569,1746119001180,169.34,0.00027425,30]
[359554570,1746119101635,508.2472553,0.000328,60]
[359554571,1746119110383,508.47,0.000328,60]
[359554572,1746119116099,508.36,0.000328,60]
[359554573,1746119121570,508.36,0.000328,60]
[359554574,1746119127405,508.36,0.000328,60]
[359554575,1746119133410,508.36,0.000328,60]
[359554576,1746119138530,508.36,0.000328,60]
[359554577,1746119148452,508.36,0.000328,60]
[359554578,1746119155206,508.36,0.000328,60]
[359554579,1746119167318,508.36,0.000328,60]
[359554580,1746119172126,508.36,0.000328,60]
[359554581,1746119177873,508.36,0.000328,60]
[359554582,1746119183673,508.36,0.000328,60]
[359554583,1746119189083,508.36,0.000328,60]
[359554584,1746119195163,508.36,0.000328,60]
[359554585,1746119199977,508.36,0.000328,60]
[359554586,1746119205387,508.36,0.000328,60]
[359554587,1746119210567,508.36,0.000328,60]
[359554588,1746119215621,508.36,0.000328,60]
[359554589,1746119220473,508.36,0.000328,60]
[359554590,1746119226544,508.36,0.000328,60]
[359554591,1746119231000,508.36,0.000328,60]
[359554592,1746119236119,508.36,0.000328,60]
[359554593,1746119240744,508.36,0.000328,60]
[359554594,1746119245437,508.25,0.000328,60]
[359554595,1746119250660,508.36,0.000328,60]
[359554596,1746119255318,508.25,0.000328,60]
[359554597,1746119259838,508.25,0.000328,60]
[359554599,1746119264583,508.36,0.000328,60]
[359554600,1746119269694,508.25,0.000328,60]
[359554601,1746119274984,508.36,0.000328,60]
[359554602,1746119294126,508.25,0.000328,60]
[359554603,1746119304921,508.36,0.000328,60]
[359554604,1746119309640,508.25,0.000328,60]
[359554605,1746119315243,508.36,0.000328,60]
[359554606,1746119320922,508.25,0.000328,60]
[359554612,1746119432381,-539.48997945,0.00019636,2]
[359554615,1746119432399,-666.29002055,0.00019636,2]
[359554616,1746119432409,-200.0,0.00019773,2]
[359554618,1746119432418,-50.64017947,0.00019773,2]
[359554620,1746119432429,-356.39,0.00019773,2]
[359554622,1746119432440,-385.75005499,0.00019773,2]
[359554624,1746119432449,-46.34075992,0.00019783,2]
[359554627,1746119432469,-203.65924008,0.00019783,2]
[359554628,1746119432478,-182.35872817,0.00019806,2]
[359554630,1746119432487,-657.79383524,0.00019815,2]
[359554658,1746119438107,-542.20616476,0.00019815,2]
[359554659,1746119438116,-300.0,0.00019815,2]
[359554660,1746119438126,-3634.27127624,0.00019816,2]
[359554663,1746119440234,-9559.96636083,0.00019816,2]
[359554680,1746119443414,-6141.53740692,0.00019816,2]
[359554681,1746119443481,-72011.0870721,0.00019816,2]
[359554683,1746119443490,-200.0,0.00019892,2]
[359554685,1746119443500,-330.3937,0.000199,2]
[359554687,1746119443509,-1561.90073873,0.0002,2]
[359554688,1746119443518,-391.60546013,0.0002,2]
[359554689,1746119443527,-271.03146825,0.00020104,4]
[359554690,1746119443537,-29999.99,0.00020145,2]
[359554691,1746119443546,-1000.0,0.00020204,2]
[359554692,1746119443555,-200.0,0.00020204,2]
[359554693,1746119443563,-1715.46,0.00020204,2]
[359554694,1746119443572,-1817.36,0.00020204,2]
[359554695,1746119443581,-238.79,0.00020204,2]
[359554696,1746119443590,-209.37248291,0.000209,4]
[359554697,1746119443599,-201.0,0.00020959,2]
[359554699,1746119443608,-350.0,0.00021,2]
[359554701,1746119443617,-1625.36712647,0.00021215,2]
[359554702,1746119446029,-1554.208,0.00021215,2]
[359554703,1746119446040,-329.86799305,0.00021215,2]
[359554704,1746119446082,-4457.98494613,0.00021215,2]
[359554705,1746119446091,-391.60546013,0.00021215,2]
[359554706,1746119446102,-154.5,0.00021417,2]
[359554707,1746119446112,-150.0,0.00021492,2]
[359554708,1746119446121,-250.0,0.00021526,2]
[359554709,1746119446130,-151.0,0.00021559,2]
[359554710,1746119446140,-207.4,0.00021559,2]
[359554711,1746119446150,-300.0,0.00021573,2]
[359554712,1746119446159,-300.0,0.0002158,2]
[359554713,1746119446169,-250.0,0.000216,2]
[359554714,1746119446178,-1680.0,0.00021684,2]
[359554715,1746119446187,-200.0,0.00021703,2]
[359554716,1746119446197,-200.0,0.00021703,2]
[359554717,1746119446207,-250.0,0.0002175,2]
[359554718,1746119446216,-9999.99,0.00021757,2]
[359554719,1746119446227,-150.99,0.00021757,2]
[359554720,1746119446237,-891.7,0.00021757,2]
[359554721,1746119446246,-9999.99,0.00021757,2]
[359554722,1746119446255,-910.12967752,0.00021861,2]
[359554723,1746119446292,-14575.05,0.00021861,2]
[359554724,1746119446303,-3775.47708819,0.00021861,2]
[359554725,1746119446315,-485.765,0.00021861,2]
[359554726,1746119446344,-4153.57823429,0.00021861,2]
[359554727,1746119446353,-1205.78,0.000219,2]
[359554728,1746119446362,-292.22742575,0.00021918,2]
[359554742,1746119447804,150.0,0.00032867,60]
[359554744,1746119496083,168.304267,0.00031584,60]
[359554745,1746119496409,168.304267,0.00031158,60]
[359554746,1746119733875,250.0,0.00017,2]
[359554747,1746119734943,300.0,0.00019,2]
[359554749,1746120336285,168.304267,0.00031584,60]
[359554750,1746120336605,168.304267,0.00031158,60]
[359554751,1746120340377,155.22,0.00027425,30]
[359554752,1746120487864,14977.104884,7.945e-05,2]
[359554755,1746120531629,700.0,0.00032,120]
[359554756,1746120549915,700.0,0.0003,120]
[359554780,1746120632423,-400.05680207,0.00019369,2]
[359554815,1746120638295,-705.90319793,0.00019369,2]
[359554816,1746120638305,-865.52208201,0.0001961,2]
[359554817,1746120638315,-300.0,0.00019998,2]
[359554818,1746120638325,-1200.0,0.00019998,2]
[359554819,1746120638334,-242.19376744,0.00019999,2]
[359554820,1746120638343,-320.97111695,0.00019999,2]
[359554821,1746120638353,-55.33209826,0.00019999,2]
[359554822,1746120638364,-178.41405899,0.00019999,2]
[359554823,1746120638373,-107.55101383,0.00019999,2]
[359554824,1746120638385,-228.77822257,0.00019999,2]
[359554825,1746120638395,-126.18177753,0.00019999,2]
[359554837,1746120642498,-129.95825528,0.00019999,2]
[359554838,1746120642508,-500.0,0.00019999,2]
[359554839,1746120642517,-203.73724879,0.00019999,2]
[359554840,1746120642529,-500.0,0.00019999,2]
[359554841,1746120642539,-500.0,0.00019999,2]
[359554842,1746120642548,-500.0,0.00019999,2]
[359554843,1746120642558,-227.21917511,0.00019999,2]
[359554844,1746120642567,-500.0,0.00019999,2]
[359554845,1746120642576,-500.0,0.00019999,2]
[359554846,1746120642586,-500.0,0.00019999,2]
[359554847,1746120642595,-5000.31032564,0.0002,2]
[359554848,1746120642605,-168436.80802267,0.0002,2]
[359554849,1746120642617,-287252.60256063,0.0002,2]
[359554850,1746120642627,-582.09882234,0.000206,2]
[359554851,1746120642637,-8644.18701988,0.000207,2]
[359554852,1746120642646,-4369.07740114,0.000208,2]
[359554853,1746120642656,-350.0,0.00021,2]
[359554854,1746120642666,-283.0,0.00021068,2]
[359554855,1746120642678,-1000.0,0.00021166,2]
[359554856,1746120642688,-23900.0,0.00021344,2]
[359554857,1746120642698,-250.0,0.00021367,2]
[359554858,1746120642708,-207.4,0.00021559,2]
[359554859,1746120642717,-1105.96,0.00021633,2]
[359554860,1746120642727,-1659.0,0.0002188,2]
[359554861,1746120642736,-6240.9962678,0.00021906,2]
[359554862,1746120642745,-42173.8627724,0.00021907,2]
[359554863,1746120642755,-172991.0481259,0.00021907,2]
[359554864,1746120642764,-150.99,0.00021918,2]
[359554865,1746120642773,-500.0,0.00021918,2]
[359554866,1746120642783,-250.0,0.00021918,2]
[359554867,1746120642792,-369.84960123,0.00021918,2]
[359554868,1746120642802,-507.79745625,0.00021973,2]
[359554869,1746120642811,-500.0,0.00021973,2]
[359554870,1746120642821,-502.20572104,0.00021973,2]
[359554871,1746120642830,-500.0,0.00021973,2]
[359554872,1746120642840,-500.0,0.00021973,2]
[359554873,1746120642849,-500.0,0.00021973,2]
[359554874,1746120642859,-177.75275273,0.00021973,2]
[359554875,1746120642868,-500.0,0.00021973,2]
[359554876,1746120642878,-407.34403053,0.00021973,2]
[359554877,1746120642887,-14995.00647048,0.00022022,2]
[359554878,1746120642897,-166.66,0.00022108,2]
[359554879,1746120642907,-4369.0774011,0.00022167,2]
[359554880,1746120642916,-500.0,0.00022173,2]
[359554881,1746120642926,-8644.18701981,0.00022244,2]
[359554882,1746120642936,-300.0,0.00022478,2]
[359554883,1746120642946,-150.0,0.00022578,2]
[359554884,1746120642955,-162.05,0.00022658,2]
[359554885,1746120642965,-1153.32,0.00022658,2]
[359554886,1746120642974,-1153.32,0.00022658,2]
[359554887,1746120642983,-150.0,0.00022658,2]
[359554888,1746120642992,-150.0,0.00022658,2]
[359554889,1746120643002,-1153.32,0.00022658,2]
[359554890,1746120643014,-150.0,0.00022658,2]
[359554891,1746120643024,-1153.32,0.00022658,2]
[359554892,1746120643033,-300.0,0.00022658,2]
[359554893,1746120643043,-351.92,0.00022658,2]
[359554894,1746120643052,-1153.32,0.00022658,2]
[359554895,1746120643062,-150.0,0.00022787,2]
[359554897,1746120643072,-833.72299871,0.00022831,2]
[359554898,1746120643081,-166.66,0.00022838,2]
[359554899,1746120643091,-1153.32,0.00022849,2]
[359554900,1746120643100,-1153.32,0.00022849,2]
[359554901,1746120643109,-1153.32,0.00022849,2]
[359554902,1746120643119,-1153.32,0.00022849,2]
[359554903,1746120643128,-162.16,0.00022849,2]
[359554904,1746120643138,-162.16,0.00022849,2]
[359554905,1746120643147,-1153.32,0.00022849,2]
[359554906,1746120643157,-215.0738,0.00022928,2]
[359554907,1746120643166,-154.5,0.00022947,2]
[359554908,1746120643176,-400.0,0.00023,2]
[359554909,1746120643185,-200.0,0.00023,2]
[359554910,1746120643194,-582.09882234,0.00023177,2]
[359554911,1746120643204,-3042.81,0.00023187,2]
[359554912,1746120643213,-1193.96,0.00023252,2]
[359554913,1746120643223,-853.71878649,0.00023305,2]
[359554914,1746120643232,-4369.0774011,0.00023535,2]
[359554915,1746120643242,-166.66,0.00023567,2]
[359554916,1746120643252,-2287.60720425,0.00023608,2]
[359554917,1746120643262,-162.16,0.00023671,2]
[359554918,1746120643272,-162.16,0.00023671,2]
[359554919,1746120643281,-309.88,0.00023671,2]
[359554920,1746120643291,-162.16,0.00023671,2]
[359554922,1746120643300,-162.16,0.00023671,2]
[359554923,1746120643309,-162.16,0.00023671,2]
[359554925,1746120643319,-162.16,0.00023671,2]
[359554926,1746120643328,-351.92,0.00023671,2]
[359554928,1746120643338,-351.92,0.00023671,2]
[359554930,1746120643347,-351.92,0.00023671,2]
[359554931,1746120643356,-351.92,0.00023671,2]
[359554932,1746120643365,-351.92,0.00023671,2]
[359554933,1746120643374,-701.93,0.00023671,2]
[359554934,1746120643384,-4231.9149,0.00023778,2]
[359554935,1746120643393,-8644.18701981,0.00023789,2]
[359554936,1746120643403,-505.53479803,0.000238,2]
[359554937,1746120643412,-500.0,0.000238,2]
[359554938,1746120643422,-500.0,0.000238,2]
[359554939,1746120643431,-300.0,0.000238,2]
[359554940,1746120643440,-1000.0,0.00023812,2]
[359554941,1746120643450,-2247.51767551,0.00023832,2]
[359554942,1746120643460,-958.46,0.00023836,2]
[359554943,1746120643469,-500.0,0.00023875,2]
[359554944,1746120643478,-1206.0,0.00023878,2]
[359554945,1746120643488,-797.0,0.00023878,2]
[359554946,1746120643497,-2070.0,0.00023878,2]
[359554947,1746120643506,-913.0,0.00023878,2]
[359554948,1746120643516,-580.0,0.00023878,2]
[359554949,1746120643527,-1449.0,0.00023878,2]
[359554950,1746120643536,-549.0,0.00023878,2]
[359554951,1746120643546,-1138.0,0.00023878,2]
[359554952,1746120643556,-178.856,0.00023878,2]
[359554953,1746120643565,-4003.0,0.00023878,2]
[359554954,1746120643574,-285.061,0.00023878,2]
[359554955,1746120643584,-264.778,0.00023878,2]
[359554956,1746120643593,-1340.0,0.00023878,2]
[359554957,1746120643602,-6750.0,0.00023878,2]
[359554958,1746120643611,-154.083,0.00023878,2]
[359554959,1746120643621,-300.0,0.0002389,2]
[359554960,1746120643630,-1105.96,0.00023897,2]
[359554961,1746120643640,-1693.639,0.00023973,5]
[359554962,1746120643649,-8364.15941462,0.00024,2]
[359554963,1746120643659,-2866.92530319,0.00024,2]
[359554964,1746120643668,-2043.65232186,0.00024,14]
[359554965,1746120643678,-5000.00252136,0.00024,5]
[359554966,1746120643687,-161.787,0.00024007,2]
[359554967,1746120643696,-250.183,0.00024007,2]
[359554968,1746120643705,-150.0,0.00024007,2]
[359554969,1746120643715,-150.647,0.00024007,2]
[359554970,1746120643724,-150.0,0.00024007,2]
[359554971,1746120643733,-150.0,0.00024007,2]
[359554972,1746120643743,-250.0,0.0002411,2]
[359554973,1746120643752,-151.0,0.00024164,7]
[359554974,1746120643761,-151.0,0.00024164,7]
[359554975,1746120643770,-151.0,0.00024164,7]
[359554976,1746120643780,-283.415114,0.00024164,7]
[359554977,1746120643790,-283.415114,0.00024164,7]
[359554978,1746120643799,-151.0,0.00024164,7]
[359554979,1746120643808,-151.0,0.00024164,7]
[359554981,1746120643818,-152.104713,0.00024164,7]
[359554983,1746120643828,-150.0,0.00024219,2]
[359554984,1746120643837,-150.0,0.00024219,2]
[359554985,1746120643847,-150.0,0.00024219,2]
[359554986,1746120643856,-150.0,0.00024219,2]
[359554987,1746120643866,-150.0,0.00024219,2]
[359554988,1746120643875,-166.66,0.00024297,2]
[359554989,1746120643885,-223.0315306,0.00024297,2]
[359554990,1746120643894,-451.39,0.00024301,2]
[359554991,1746120643903,-451.39,0.00024301,2]
[359554992,1746120643913,-451.39,0.00024301,2]
[359554993,1746120643922,-200.68964993,0.00024348,2]
[359554994,1746120643932,-154.5,0.00024477,2]
[359554995,1746120643941,-245.93316877,0.000246,2]
[359554996,1746120643951,-2621.6629052,0.0002465,2]
[359554997,1746120643961,-500.0,0.00024658,2]
[359554998,1746120643971,-192.0,0.00024658,2]
[359554999,1746120643980,-1000.0,0.00024658,2]
[359555000,1746120643989,-150.0,0.00024658,2]
[359555001,1746120643999,-200.0,0.000247,2]
[359555002,1746120644010,-799.0,0.000247,3]
[359555003,1746120644028,-1000.0,0.000247,3]
[359555004,1746120644037,-1000.0,0.000247,3]
[359555005,1746120644046,-1000.0,0.000247,2]
[359555006,1746120644055,-1000.0,0.000247,2]
[359555007,1746120644066,-1000.0,0.000247,2]
[359555009,1746120644075,-225.0,0.000247,2]
[359555011,1746120644085,-158.08935037,0.000247,2]
[359555012,1746120644094,-2000.0,0.00024701,15]
[359555013,1746120644104,-200.0,0.00024701,2]
[359555014,1746120644113,-218.04741893,0.00024759,2]
[359555015,1746120644122,-396.37275046,0.00024759,2]
[359555016,1746120644132,-1418.2818,0.00024789,2]
[359555017,1746120644141,-150.0,0.00024799,2]
[359555018,1746120644150,-1000.0,0.000248,2]
[359555019,1746120644159,-1000.0,0.000248,2]
[359555020,1746120644168,-1000.0,0.000248,2]
[359555021,1746120644177,-151.0,0.000248,7]
[359555022,1746120644187,-151.0,0.000248,7]
[359555023,1746120644196,-151.0,0.000248,7]
[359555024,1746120644205,-255.658181,0.000248,7]
[359555025,1746120644214,-255.658181,0.000248,7]
[359555026,1746120644224,-176.550372,0.000248,7]
[359555027,1746120644233,-151.0,0.000248,7]
[359555028,1746120644242,-151.0,0.000248,7]
[359555029,1746120644252,-151.0,0.000248,7]
[359555030,1746120644261,-151.0,0.000248,7]
[359555031,1746120644270,-244.835755,0.000248,7]
[359555032,1746120644279,-233.795229,0.000248,7]
[359555033,1746120644288,-233.795229,0.000248,7]
[359555034,1746120644297,-816.700963,0.000248,7]
[359555035,1746120644307,-816.700963,0.000248,7]
[359555036,1746120644316,-151.0,0.000248,7]
[359555037,1746120644325,-151.0,0.000248,7]
[359555038,1746120644334,-151.0,0.000248,7]
[359555039,1746120644343,-155.256402,0.000248,7]
[359555040,1746120644353,-155.256402,0.000248,7]
[359555041,1746120644363,-151.0,0.000248,7]
[359555042,1746120644372,-151.0,0.000248,7]
[359555043,1746120644381,-215.778034,0.000248,7]
[359555044,1746120644391,-151.0,0.000248,7]
[359555045,1746120644400,-151.0,0.000248,7]
[359555046,1746120644409,-258.880865,0.000248,7]
[359555047,1746120644419,-283.415114,0.000248,7]
[359555048,1746120644428,-283.415114,0.000248,7]
[359555049,1746120644437,-172170.65193843,0.000248,2]
[359555050,1746120644459,-1434.04625,0.000248,2]
[359555051,1746120644490,-574.51572812,0.000248,2]
[359555052,1746120645295,-364.8952943,0.000248,2]
[359555053,1746120645361,-125480.18559615,0.000248,2]
[359555054,1746120645371,-151.0,0.000248,7]
[359555055,1746120645381,-151.0,0.000248,7]
[359555056,1746120645390,-151.0,0.000248,7]
[359555057,1746120645399,-327.824189,0.000248,7]
[359555058,1746120645409,-151.0,0.000248,7]
[359555059,1746120645418,-327.824189,0.000248,7]
[359555060,1746120645427,-151.0,0.000248,7]
[359555061,1746120645437,-151.0,0.000248,7]
[359555062,1746120645446,-151.0,0.000248,7]
[359555063,1746120645457,-151.0,0.000248,7]
[359555064,1746120645466,-151.0,0.000248,7]
[359555065,1746120645475,-151.0,0.000248,7]
[359555066,1746120645485,-152.222246,0.000248,7]
[359555067,1746120645494,-1222.79058328,0.0002482,10]
[359555068,1746120645504,-1938.80547797,0.0002482,10]
[359555069,1746120645513,-1202.52150259,0.0002482,10]
[359555070,1746120645523,-2420.0,0.00024822,2]
[359555071,1746120645534,-151.0,0.00024848,7]
[359555072,1746120645544,-151.0,0.00024848,7]
[359555073,1746120645553,-151.0,0.00024848,7]
[359555074,1746120645563,-151.0,0.00024848,7]
[359555075,1746120645572,-151.0,0.00024848,7]
[359555076,1746120645581,-154.853156,0.00024848,7]
[359555077,1746120645590,-1746.531181,0.00024848,7]
[359555078,1746120645600,-152.27012,0.00024848,7]
[359555079,1746120645609,-151.0,0.00024848,7]
[359555080,1746120645619,-151.0,0.00024848,7]
[359555081,1746120645629,-151.766547,0.00024848,7]
[359555082,1746120645639,-151.0,0.00024848,7]
[359555083,1746120645648,-206.89,0.00024857,2]
[359555084,1746120645659,-374.12743031,0.00024867,2]
[359555085,1746120645669,-2228.0,0.00024877,2]
[359555086,1746120645679,-30000.0,0.00024877,2]
[359555087,1746120645688,-151.0,0.00024883,7]
[359555088,1746120645698,-151.0,0.00024883,7]